bitfinex/quotes_SOLUSD_20250829
["timestamp","ask_amount","ask_price","bid_price","bid_amount"]
[1756457412919,19.35410317,208.48,208.45,0.03]
[1756457413229,19.35410317,208.52,208.47,18.3923552]
[1756457413438,19.35410317,208.52,208.48,0.71]
[1756457413736,0.06,208.5,208.48,0.71]
[1756457413920,0.06,208.5,208.49,0.71]
[1756457414604,0.06,208.5,208.49,33.65969718]
[1756457415343,0.06,208.5,208.49,38.45609029]
[1756457416433,0.06,208.53,208.52,45.35410317]
[1756457416610,0.06,208.53,208.52,84.77410317]
[1756457416931,0.06,208.53,208.52,99.07969718]
[1756457417431,0.06,208.53,208.52,103.87540023]
[1756457418620,0.06,208.53,208.52,45.10129706]
[1756457418818,0.06,208.53,208.52,84.52129706]
[1756457419320,0.06,208.53,208.52,103.87540023]
[1756457421226,0.06,208.53,208.52,84.52129706]
[1756457421530,0.06,208.53,208.52,103.87540023]
[1756457421733,0.06,208.53,208.52,124.81312606]
[1756457421918,0.06,208.53,208.52,162.29129706]
[1756457422118,0.06,208.53,208.52,103.85540023]
[1756457423631,0.06,208.53,208.52,83.79129706]
[1756457423850,0.06,208.53,208.52,103.85540023]
[1756457424246,0.06,208.53,208.52,44.39129706]
[1756457424545,0.06,208.53,208.52,39.59559401]
[1756457424722,0.06,208.53,208.52,83.79129706]
[1756457425140,0.06,208.53,208.52,78.99559401]
[1756457425741,0.06,208.53,208.52,83.79129706]
[1756457426538,0.06,208.53,208.52,104.33497053]
[1756457426748,0.06,208.55,208.53,13.59559401]
[1756457426962,0.06,208.59,208.58,32.94969718]
[1756457427127,0.06,208.59,208.58,72.32969718]
[1756457427328,0.06,208.59,208.58,73.03969718]
[1756457427725,0.06,208.59,208.58,77.8340207]
[1756457427957,0.06,208.59,208.58,78.31345305]
[1756457428667,1e-08,208.62,208.58,90.29926185]
[1756457428954,1e-08,208.62,208.61,58.94969718]
[1756457429134,1e-08,208.62,208.61,98.80906058]
[1756457429332,1e-08,208.62,208.61,99.03969718]
[1756457429757,1e-08,208.62,208.61,103.83333123]
[1756457430348,1e-08,208.64,208.62,13.59559401]
[1756457430541,1e-08,208.64,208.63,72.80901463]
[1756457430743,1e-08,208.64,208.63,73.52901463]
[1756457431257,1e-08,208.64,208.63,14.79491146]
[1756457431451,1e-08,208.64,208.63,52.95559401]
[1756457431637,1e-08,208.64,208.63,78.30218914]
[1756457431834,1e-08,208.65,208.64,13.59559401]
[1756457432030,1e-08,208.65,208.64,33.66969718]
[1756457432651,1e-08,208.68,208.67,39.59559401]
[1756457432845,1e-08,208.68,208.67,98.78892275]
[1756457433048,1e-08,208.68,208.67,99.02969718]
[1756457433842,1e-08,208.68,208.67,105.74202889]
[1756457435059,0.48000001,208.76,208.75,26.0]
[1756457435340,19.35410317,208.78,208.75,65.34]
[1756457435541,19.35410317,208.77,208.75,26.0]
[1756457435740,4.88929298,208.8,208.66,4.79245245]
[1756457435741,4.79041916,208.75,208.66,4.79245245]
[1756457435940,19.35410317,208.72,208.67,52.93559401]
[1756457436158,19.35410317,208.73,208.7,26.0]
[1756457436346,19.35410317,208.73,208.69,39.34]
[1756457436542,19.35410317,208.72,208.69,39.34]
[1756457437160,0.68,208.71,208.69,39.34]
[1756457437653,0.68,208.7,208.69,52.93559401]
[1756457438059,0.68,208.7,208.69,13.59559401]
[1756457438260,0.68,208.7,208.69,52.93559401]
[1756457438455,20.03410317,208.7,208.65,13.59559401]
[1756457438773,20.03410317,208.69,208.67,13.59559401]
[1756457438984,20.03410317,208.68,208.62,4.79317912]
[1756457439149,19.35410317,208.66,208.62,13.59559401]
[1756457439347,0.68,208.65,208.62,13.59559401]
[1756457439683,0.68,208.65,208.63,39.32]
[1756457439852,20.03410317,208.64,208.58,4.7943063]
[1756457440053,19.35410317,208.61,208.59,39.32]
[1756457440260,0.68,208.6,208.59,39.32]
[1756457440844,20.03410317,208.6,208.53,4.79525784]
[1756457441047,19.35410317,208.57,208.54,39.32]
[1756457441272,20.03410317,208.59,208.55,13.59559401]
[1756457441459,20.03410317,208.59,208.54,70.11522386]
[1756457441656,20.03410317,208.58,208.55,13.59559401]
[1756457441851,0.68,208.58,208.56,39.32]
[1756457442076,19.35410317,208.59,208.56,39.32]
[1756457442370,19.35410317,208.57,208.51,20.07410317]
[1756457442573,19.35410317,208.55,208.5,13.59559401]
[1756457442771,20.03410317,208.54,208.5,4.79616306]
[1756457443073,19.35410317,208.51,208.49,0.03]
[1756457443370,19.35410317,208.5,208.49,0.03]
[1756457443577,20.03410317,208.5,208.49,26.03]
[1756457443872,20.03410317,208.5,208.49,0.03]
[1756457445778,0.68,208.55,208.49,26.03]
[1756457445956,19.35410317,208.54,208.49,65.35]
[1756457446150,20.03410317,208.54,208.49,65.35]
[1756457446352,0.68,208.58,208.52,13.59559401]
[1756457446661,19.35410317,208.65,208.52,13.59559401]
[1756457446662,19.35410317,208.59,208.53,32.94969718]
[1756457446860,20.03410317,208.61,208.55,58.94969718]
[1756457447061,19.35410317,208.59,208.55,39.59559401]
[1756457447261,19.35410317,208.58,208.55,65.32]
[1756457447579,19.35410317,208.61,208.55,84.67410317]
[1756457447773,0.68,208.62,208.57,24.14865655]
[1756457448158,19.35410317,208.63,208.55,26.0]
[1756457448159,19.35410317,208.6,208.55,26.0]
[1756457448357,0.68,208.59,208.55,70.11496942]
[1756457448564,20.03410317,208.6,208.55,70.11496942]
[1756457448769,19.35410317,208.63,208.57,19.35410317]
[1756457449083,20.03410317,208.62,208.56,13.59559401]
[1756457449769,20.03410317,208.62,208.57,4.79455338]
[1756457449977,19.35410317,208.65,208.59,19.35410317]
[1756457450175,19.35410317,208.65,208.55,37.98698126]
[1756457450176,19.35410317,208.6,208.55,26.0]
[1756457450352,19.35410317,208.59,208.57,26.0]
[1756457450551,19.35410317,208.59,208.54,39.32]
[1756457450764,19.35410317,208.57,208.54,13.59559401]
[1756457450966,19.35410317,208.56,208.54,13.59559401]
[1756457451165,19.35410317,208.55,208.53,39.32]
[1756457451382,19.35410317,208.54,208.53,39.32]
[1756457451782,19.35410317,208.54,208.52,13.59559401]
[1756457452170,19.35410317,208.55,208.52,13.59559401]
[1756457452981,19.35410317,208.55,208.53,26.0]
[1756457452982,19.35410317,208.54,208.53,26.0]
[1756457453163,19.35410317,208.55,208.53,26.0]
[1756457454058,19.35410317,208.54,208.53,26.0]
[1756457454667,19.35410317,208.55,208.53,26.0]
[1756457455072,19.35410317,208.57,208.53,30.79533543]
[1756457455266,19.35410317,208.56,208.53,30.79533543]
[1756457455467,19.35410317,208.56,208.53,26.0]
[1756457455670,19.35410317,208.55,208.53,26.0]
[1756457455871,19.35410317,208.54,208.53,26.0]
[1756457457377,19.35410317,208.55,208.51,39.3]
[1756457457864,19.35410317,208.55,208.51,65.3]
[1756457458071,19.35410317,208.55,208.52,4.79570305]
[1756457458393,0.68,208.58,208.52,4.79570305]
[1756457458587,19.35410317,208.55,208.52,4.79570305]
[1756457459496,19.35410317,208.55,208.51,65.3]
[1756457460208,19.35410317,208.54,208.53,26.0]
[1756457460364,0.71,208.59,208.53,26.68]
[1756457460569,0.71,208.61,208.54,39.3]
[1756457460769,19.35410317,208.57,208.54,39.3]
[1756457461500,19.35410317,208.57,208.54,44.0951782]
[1756457461992,19.35410317,208.56,208.54,39.3]
[1756457462191,19.35410317,208.57,208.54,39.3]
[1756457462492,19.35410317,208.56,208.52,26.0]
[1756457462675,11.98276524,208.64,208.49,0.03]
[1756457462676,19.35410317,208.53,208.49,0.03]
[1756457462885,19.35410317,208.5,208.49,0.03]
[1756457463275,19.35410317,208.5,208.49,26.03]
[1756457463504,19.35410317,208.5,208.49,0.03]
[1756457463693,26.0,208.58,208.49,0.03]
[1756457463868,0.71,208.55,208.49,5.50635842]
[1756457464071,139.60368188,208.61,208.51,19.35410317]
[1756457464295,139.60368188,208.61,208.53,19.35410317]
[1756457464296,0.71,208.61,208.53,19.35410317]
[1756457464499,19.35410317,208.61,208.54,33.62969718]
[1756457464706,19.35410317,208.6,208.55,39.28]
[1756457465006,19.35410317,208.6,208.55,39.96]
[1756457465379,19.35410317,208.6,208.56,4.79478327]
[1756457466099,19.35410317,208.6,208.56,5.47478327]
[1756457466387,13.59559401,208.74,208.59,32.94969718]
[1756457466602,19.35410317,208.66,208.6,59.31410317]
[1756457467170,19.35410317,208.64,208.6,39.28]
[1756457467371,19.35410317,208.63,208.59,13.59559401]
[1756457467595,4.79179644,208.69,208.6,24.82796702]
[1756457467772,4.79179644,208.69,208.61,13.59559401]
[1756457467971,19.35410317,208.67,208.61,13.59559401]
[1756457468386,19.35410317,208.67,208.61,14.27559401]
[1756457468692,19.35410317,208.66,208.61,14.27559401]
[1756457468895,19.35410317,208.66,208.61,19.06903726]
[1756457470380,19.35410317,208.66,208.58,26.0]
[1756457470381,4.79252574,208.66,208.58,26.0]
[1756457470580,19.35410317,208.59,208.54,0.03]
[1756457470785,19.35410317,208.56,208.54,4.82521769]
[1756457471003,19.35410317,208.56,208.55,26.0]
[1756457471195,19.35410317,208.57,208.55,26.0]
[1756457471496,19.35410317,208.56,208.54,0.03]
[1756457471700,19.35410317,208.55,208.54,0.03]
[1756457471884,0.71,208.59,208.54,0.03]
[1756457472085,19.35410317,208.55,208.54,0.03]
[1756457475608,24.85911635,208.55,208.54,0.03]
[1756457476383,19.35410317,208.55,208.54,0.03]
[1756457476877,50.85911635,208.55,208.51,0.03]
[1756457477075,50.85911635,208.55,208.49,0.03]
[1756457477076,19.35410317,208.52,208.49,0.03]
[1756457477305,19.35410317,208.5,208.49,0.03]
[1756457477500,38.70820634,208.5,208.46,0.03]
[1756457477703,19.35410317,208.47,208.46,0.03]
[1756457478104,20.06410317,208.47,208.46,0.03]
[1756457478282,19.35410317,208.47,208.46,0.03]
[1756457478478,20.06410317,208.47,208.46,0.03]
[1756457478710,19.35410317,208.47,208.46,0.03]
[1756457478921,20.06410317,208.47,208.46,0.03]
[1756457479290,19.35410317,208.48,208.46,0.03]
[1756457479682,19.35410317,208.47,208.46,0.03]
[1756457481106,19.35410317,208.49,208.46,0.03]
[1756457481624,19.35410317,208.48,208.46,0.03]
[1756457482792,19.35410317,208.49,208.46,0.03]
[1756457485102,19.35410317,208.47,208.46,0.03]
[1756457486597,24.86095643,208.47,208.46,0.03]
[1756457487030,24.86095643,208.47,208.46,1e-08]
[1756457487311,24.86095643,208.47,208.42,0.03]
[1756457487312,26.0,208.44,208.42,0.03]
[1756457487488,26.0,208.44,208.41,0.03]
[1756457487489,58.59410317,208.43,208.41,0.03]
[1756457487693,58.59410317,208.43,208.31,0.68]
[1756457487694,19.35410317,208.42,208.31,0.68]
[1756457487906,45.35410317,208.41,208.31,0.68]
[1756457488095,45.35410317,208.41,208.28,5.0011916]
[1756457488096,19.35410317,208.32,208.28,0.2]
[1756457488298,19.35410317,208.29,208.28,0.2]
[1756457488702,0.64,208.34,208.28,0.2]
[1756457488894,4.7998189,208.35,208.28,0.2]
[1756457489103,19.35410317,208.29,208.28,0.2]
[1756457489618,19.35410317,208.3,208.28,5.00122911]
[1756457489911,19.35410317,208.3,208.28,5.68122911]
[1756457490114,19.35410317,208.29,208.28,0.2]
[1756457491605,0.64,208.33,208.28,0.2]
[1756457492223,39.24,208.34,208.28,5.00118767]
[1756457492420,19.35410317,208.29,208.28,5.67118767]
[1756457492628,19.35410317,208.29,208.28,0.2]
[1756457493697,19.99410317,208.29,208.28,0.2]
[1756457494523,24.79510177,208.29,208.28,0.2]
[1756457494697,19.99410317,208.29,208.28,0.2]
[1756457494905,19.35410317,208.29,208.28,0.2]
[1756457495623,0.64,208.37,208.28,0.87]
[1756457495829,19.35410317,208.29,208.28,0.2]
[1756457496206,0.64,208.33,208.28,0.2]
[1756457496403,19.35410317,208.29,208.28,0.2]
[1756457496806,24.79510177,208.29,208.28,0.2]
[1756457497029,5.4409986,208.29,208.28,0.2]
[1756457497236,24.79510177,208.29,208.28,0.2]
[1756457497607,19.35410317,208.29,208.28,0.2]
[1756457498206,24.79510177,208.29,208.28,0.2]
[1756457498548,19.35410317,208.29,208.28,0.2]
[1756457498711,24.15510177,208.29,208.28,0.2]
[1756457499137,19.35410317,208.29,208.28,0.2]
[1756457500307,19.99410317,208.29,208.28,0.2]
[1756457500624,24.15510177,208.29,208.28,0.2]
[1756457501021,24.79510177,208.29,208.28,0.2]
[1756457501202,24.15510177,208.29,208.28,0.2]
[1756457501539,24.79510177,208.29,208.28,0.2]
[1756457503943,24.79510177,208.29,208.25,0.03]
[1756457504109,19.35410317,208.26,208.25,0.03]
[1756457504313,58.57410317,208.26,208.25,0.03]
[1756457504528,59.21410317,208.26,208.25,0.03]
[1756457504722,64.01579336,208.26,208.25,0.03]
[1756457505033,64.01579336,208.26,208.23,0.03]
[1756457505236,19.35410317,208.24,208.23,0.03]
[1756457505749,26.0,208.13,208.07,0.67]
[1756457505915,19.35410317,208.12,208.08,0.67]
[1756457506115,19.35410317,208.2,208.08,0.67]
[1756457506116,26.0,208.2,208.08,0.67]
[1756457506331,19.35410317,208.11,208.08,0.67]
[1756457506523,19.35410317,208.09,208.08,0.67]
[1756457507232,4.80238198,208.23,208.09,13.59559401]
[1756457507412,19.35410317,208.12,208.1,0.67]
[1756457507618,19.35410317,208.12,208.09,26.0]
[1756457507835,19.35410317,208.14,208.09,26.0]
[1756457508012,19.35410317,208.17,208.1,32.94969718]
[1756457508213,19.35410317,208.17,208.11,0.67]
[1756457508410,19.35410317,208.17,208.13,26.0]
[1756457508639,39.22,208.21,208.14,0.67]
[1756457508839,19.35410317,208.18,208.14,5.47440378]
[1756457509438,39.22,208.21,208.15,0.67]
[1756457509643,19.35410317,208.19,208.15,0.67]
[1756457509813,19.35410317,208.18,208.16,0.67]
[1756457510228,19.35410317,208.2,208.17,0.67]
[1756457510627,19.35410317,208.2,208.18,0.67]
[1756457510824,19.35410317,208.21,208.19,0.67]
[1756457511130,19.35410317,208.2,208.19,0.67]
[1756457511329,39.22,208.24,208.16,13.59559401]
[1756457511646,39.22,208.24,208.2,0.67]
[1756457511848,39.22,208.24,208.16,13.59559401]
[1756457512058,44.02216058,208.24,208.17,0.67]
[1756457512221,44.66216058,208.24,208.14,31.47444453]
[1756457512733,19.35410317,208.17,208.14,31.47444453]
[1756457513046,19.35410317,208.18,208.15,26.67]
[1756457513223,19.35410317,208.18,208.16,0.67]
[1756457513426,19.35410317,208.18,208.17,0.67]
[1756457513943,19.35410317,208.19,208.17,0.67]
[1756457514318,0.64,208.29,208.18,13.59559401]
[1756457514549,19.35410317,208.27,208.2,32.94969718]
[1756457514713,19.35410317,208.26,208.21,0.67]
[1756457515022,19.35410317,208.26,208.22,0.67]
[1756457515216,4.80076812,208.3,208.21,4.80284328]
[1756457515419,19.35410317,208.25,208.23,0.67]
[1756457515645,19.35410317,208.28,208.24,0.67]
[1756457516067,19.35410317,208.29,208.25,0.67]
[1756457516220,0.64,208.38,208.27,19.35410317]
[1756457516557,19.35410317,208.3,208.26,13.59559401]
[1756457516848,19.35410317,208.29,208.26,0.67]
[1756457517142,19.35410317,208.31,208.27,0.67]
[1756457517332,19.35410317,208.32,208.28,0.67]
[1756457517535,19.35410317,208.33,208.28,0.67]
[1756457517732,19.35410317,208.33,208.29,0.67]
[1756457518040,19.35410317,208.3,208.25,5.47188403]
[1756457518253,19.35410317,208.26,208.23,26.0]
[1756457518445,19.35410317,208.24,208.19,0.67]
[1756457518749,19.35410317,208.22,208.2,0.67]
[1756457518946,19.35410317,208.21,208.16,0.67]
[1756457519248,19.35410317,208.23,208.17,19.35410317]
[1756457519421,19.35410317,208.23,208.18,0.67]
[1756457519622,19.35410317,208.21,208.16,5.4739883]
[1756457519848,19.35410317,208.21,208.17,0.67]
[1756457520057,19.35410317,208.21,208.14,19.35410317]
[1756457520058,19.35410317,208.2,208.16,26.67]
[1756457520240,19.35410317,208.21,208.16,31.47395813]
[1756457520627,19.35410317,208.18,208.13,0.71]
[1756457520834,19.35410317,208.16,208.1,32.94969718]
[1756457521079,19.35410317,208.17,208.14,0.71]
[1756457521345,19.35410317,208.17,208.14,26.71]
[1756457521544,19.35410317,208.2,208.15,0.71]
[1756457521846,19.35410317,208.2,208.16,0.71]
[1756457522051,19.35410317,208.2,208.17,0.71]
[1756457522437,0.64,208.27,208.18,0.71]
[1756457522637,19.35410317,208.21,208.18,0.71]
[1756457523945,19.35410317,208.21,208.18,5.51351255]
[1756457524148,4.802112,208.25,208.18,5.51351255]
[1756457524349,19.35410317,208.21,208.17,4.80374478]
[1756457524524,19.35410317,208.18,208.11,0.71]
[1756457524729,19.35410317,208.13,208.11,0.71]
[1756457524928,19.35410317,208.13,208.09,4.80561295]
[1756457525145,39.86,208.22,208.1,0.71]
[1756457525359,19.35410317,208.16,208.12,26.0]
[1756457525660,20.0,208.29,208.12,26.0]
[1756457525661,39.22,208.26,208.16,13.59559401]
[1756457525827,19.35410317,208.23,208.16,0.71]
[1756457526023,19.35410317,208.21,208.16,14.30559401]
[1756457526254,19.35410317,208.21,208.17,0.71]
[1756457526654,19.35410317,208.2,208.14,50.86846665]
[1756457526956,19.35410317,208.17,208.14,26.0]
[1756457527248,19.35410317,208.16,208.14,26.0]
[1756457527854,19.35410317,208.15,208.13,26.0]
[1756457528050,19.35410317,208.16,208.13,26.0]
[1756457528245,19.35410317,208.15,208.12,26.0]
[1756457528760,19.35410317,208.15,208.13,26.0]
[1756457528954,19.35410317,208.14,208.1,0.71]
[1756457529129,19.35410317,208.12,208.08,0.03]
[1756457529333,19.35410317,208.13,208.1,26.0]
[1756457529533,4.80538202,208.1,208.08,0.03]
[1756457529740,0.64,208.1,208.08,0.03]
[1756457529936,19.35410317,208.09,208.08,0.03]
[1756457530366,19.99410317,208.09,208.08,0.03]
[1756457530654,19.35410317,208.09,208.08,0.03]
[1756457530861,19.35410317,208.1,208.08,0.03]
[1756457531055,19.35410317,208.09,208.08,0.03]
[1756457531259,19.35410317,208.1,208.08,0.03]
[1756457531448,19.35410317,208.09,208.08,0.03]
[1756457531841,14.449823,208.18,208.08,0.74]
[1756457532058,19.35410317,208.14,208.08,20.09410317]
[1756457532362,19.35410317,208.13,208.08,0.74]
[1756457532568,19.35410317,208.14,208.08,20.09410317]
[1756457533071,19.35410317,208.15,208.08,20.09410317]
[1756457533252,19.35410317,208.12,208.08,0.03]
[1756457533453,0.64,208.24,208.14,13.59559401]
[1756457533659,3.97042703,208.31,208.19,13.59559401]
[1756457533851,19.35410317,208.23,208.17,0.71]
[1756457534057,19.35410317,208.19,208.17,26.0]
[1756457534562,19.35410317,208.19,208.15,4.80422772]
[1756457534884,39.22,208.26,208.17,32.94969718]
[1756457535041,19.35410317,208.23,208.15,4.80422772]
[1756457535245,19.35410317,208.17,208.16,26.0]
[1756457535444,19.35410317,208.17,208.09,0.71]
[1756457535663,19.35410317,208.14,208.09,5.51557486]
[1756457535965,19.35410317,208.15,208.1,0.71]
[1756457536147,19.35410317,208.14,208.1,0.71]
[1756457536353,19.35410317,208.18,208.12,32.94969718]
[1756457536568,19.35410317,208.21,208.13,0.71]
[1756457536770,19.35410317,208.14,208.1,40.30559401]
[1756457537644,19.35410317,208.14,208.1,45.11093074]
[1756457538271,19.35410317,208.14,208.08,58.60410317]
[1756457538272,19.35410317,208.11,208.08,0.03]
[1756457538476,19.35410317,208.12,208.08,0.03]
[1756457538775,19.35410317,208.11,208.08,0.03]
[1756457539072,19.35410317,208.09,208.08,0.03]
[1756457539455,19.35410317,208.1,208.08,0.03]
[1756457539774,19.35410317,208.11,208.1,0.03]
[1756457540772,0.64,208.11,208.1,0.03]
[1756457540975,19.99410317,208.11,208.1,0.03]
[1756457541652,24.79925429,208.11,208.1,0.03]
[1756457541973,19.35410317,208.12,208.1,0.03]
[1756457542156,70.66443389,208.15,208.1,0.03]
[1756457542357,19.35410317,208.11,208.1,0.03]
[1756457542548,19.35410317,208.12,208.1,0.03]
[1756457542871,44.02431283,208.15,208.1,0.03]
[1756457542872,19.35410317,208.11,208.1,0.03]
[1756457543080,19.99410317,208.11,208.1,0.03]
[1756457543379,19.35410317,208.11,208.1,0.03]
[1756457544061,26.0,208.17,208.1,0.74]
[1756457544373,19.35410317,208.14,208.1,0.74]
[1756457544680,39.24,208.22,208.13,19.35410317]
[1756457544985,0.06,208.23,208.14,0.71]
[1756457545159,19.41410317,208.23,208.14,0.71]
[1756457545357,19.35410317,208.21,208.16,13.59559401]
[1756457545680,0.06,208.23,208.2,4.80307396]
[1756457546095,19.35410317,208.21,208.17,0.71]
[1756457546376,0.06,208.23,208.18,26.71]
[1756457546757,19.35410317,208.21,208.18,26.71]
[1756457546953,19.35410317,208.2,208.18,0.71]
[1756457547187,19.99410317,208.19,208.11,0.71]
[1756457547416,19.99410317,208.19,208.1,0.03]
[1756457547417,19.35410317,208.12,208.1,0.03]
[1756457547689,19.35410317,208.11,208.1,0.03]
[1756457548375,19.35410317,208.12,208.1,0.03]
[1756457548572,19.35410317,208.12,208.1,0.74]
[1756457548982,39.28,208.19,208.11,0.71]
[1756457549189,44.10330467,208.19,208.11,0.71]
[1756457549371,39.3,208.19,208.11,0.71]
[1756457549683,4.8035354,208.18,208.11,5.51510606]
[1756457549857,19.35410317,208.14,208.11,5.51510606]
[1756457550275,19.35410317,208.14,208.1,0.03]
[1756457550785,39.3,208.19,208.12,26.0]
[1756457550786,19.35410317,208.16,208.12,26.0]
[1756457550974,4.80261262,208.22,208.13,0.71]
[1756457551295,4.80261262,208.22,208.12,26.0]
[1756457551296,19.35410317,208.16,208.12,26.0]
[1756457551465,0.06,208.23,208.16,13.59559401]
[1756457551659,0.06,208.23,208.2,19.35410317]
[1756457551861,0.06,208.23,208.19,13.59559401]
[1756457552063,0.06,208.23,208.19,38.46281268]
[1756457552288,0.06,208.23,208.21,13.59559401]
[1756457552490,19.41410317,208.23,208.2,0.71]
[1756457552675,19.41410317,208.23,208.21,0.71]
[1756457552882,0.06,208.23,208.21,0.71]
[1756457553172,0.06,208.23,208.22,14.30559401]
[1756457553561,19.41410317,208.23,208.12,12.01175855]
[1756457553763,19.35410317,208.2,208.18,26.0]
[1756457554085,19.35410317,208.21,208.18,26.0]
[1756457554389,19.35410317,208.19,208.17,26.0]
[1756457554592,19.35410317,208.18,208.11,13.59559401]
[1756457554885,19.35410317,208.14,208.11,13.59559401]
[1756457555088,26.0,208.22,208.12,0.71]
[1756457555591,28.11047788,208.15,208.11,13.59559401]
[1756457555886,28.11047788,208.18,208.13,13.59559401]
[1756457556100,0.06,208.23,208.16,13.59559401]
[1756457556475,28.11047788,208.21,208.16,13.59559401]
[1756457556672,28.11047788,208.21,208.15,54.11047788]
[1756457556673,28.11047788,208.17,208.15,26.0]
[1756457556870,28.11047788,208.17,208.13,13.59559401]
[1756457557087,0.64,208.21,208.13,14.30559401]
[1756457557291,28.11047788,208.17,208.13,13.59559401]
[1756457557585,28.11047788,208.16,208.12,13.59559401]
[1756457557792,0.06,208.23,208.13,5.51468937]
[1756457557976,28.11047788,208.17,208.13,5.51468937]
[1756457558287,39.32,208.22,208.1,0.03]
[1756457558288,28.11047788,208.14,208.1,0.74]
[1756457558786,0.64,208.19,208.1,0.03]
[1756457558787,28.11047788,208.13,208.1,0.03]
[1756457558990,0.64,208.19,208.11,0.03]
[1756457559174,28.11047788,208.13,208.11,0.03]
[1756457559791,0.64,208.19,208.11,0.03]
[1756457559792,28.11047788,208.14,208.11,0.03]
[1756457560769,39.3,208.17,208.12,0.71]
[1756457561067,39.3,208.17,208.11,0.03]
[1756457561068,28.11047788,208.15,208.11,0.03]
[1756457561289,28.11047788,208.12,208.11,0.03]
[1756457561484,28.11047788,208.13,208.11,0.03]
[1756457562768,30.80307396,208.2,208.12,0.71]
[1756457562969,28.11047788,208.16,208.12,0.71]
[1756457563291,28.11047788,208.15,208.11,0.03]
[1756457563698,0.64,208.15,208.11,0.03]
[1756457563879,28.11047788,208.12,208.11,0.03]
[1756457564567,33.55539811,208.12,208.11,0.03]
[1756457564769,72.87539811,208.12,208.11,0.03]
[1756457566127,39.59559401,208.09,208.08,0.03]
[1756457566312,26.0,208.05,208.0,100.0]
[1756457566511,28.11047788,208.01,208.0,100.0]
[1756457568080,32.91793905,208.01,208.0,100.0]
[1756457568275,28.11047788,208.01,208.0,100.0]
[1756457568904,67.53047788,208.01,208.0,100.0]
[1756457569096,28.11047788,208.01,208.0,100.0]
[1756457569594,67.51047788,208.01,208.0,100.0]
[1756457569798,72.31793905,208.01,208.0,100.0]
[1756457570006,67.51047788,208.01,208.0,100.0]
[1756457570194,28.11047788,208.01,208.0,100.0]
[1756457570510,72.95793905,208.01,208.0,100.0]
[1756457571204,33.55793905,208.01,208.0,100.0]
[1756457571382,72.99793905,208.01,208.0,100.0]
[1756457571583,33.55793905,208.01,208.0,100.0]
[1756457572080,72.97793905,208.01,208.0,100.0]
[1756457572699,72.33793905,208.01,208.0,100.0]
[1756457572910,112.57353306,208.01,208.0,100.0]
[1756457573081,112.57353306,208.01,207.89,0.1]
[1756457573281,28.11047788,207.91,207.89,0.1]
[1756457573502,67.59047788,207.9,207.89,0.1]
[1756457574077,4.81023618,207.89,207.88,0.1]
[1756457574280,33.56071406,207.89,207.82,0.1]
[1756457574513,28.11047788,207.83,207.82,0.1]
[1756457575284,28.75047788,207.83,207.82,0.1]
[1756457575578,28.75047788,207.83,207.8,0.1]
[1756457575800,28.11047788,207.81,207.8,0.1]
[1756457576002,67.73047788,207.81,207.8,0.1]
[1756457576205,26.0,207.85,207.8,0.1]
[1756457576405,28.11047788,207.81,207.8,0.1]
[1756457576706,67.75047788,207.81,207.8,0.1]
[1756457577688,67.73047788,207.81,207.8,0.1]
[1756457577890,28.11047788,207.81,207.8,0.1]
[1756457578190,0.64,207.87,207.8,0.1]
[1756457578397,28.11047788,207.81,207.8,0.1]
[1756457578605,67.73047788,207.81,207.8,0.81]
[1756457578792,67.73047788,207.81,207.8,0.1]
[1756457579314,67.75047788,207.81,207.8,0.1]
[1756457579494,67.75047788,207.81,207.8,0.81]
[1756457579694,67.75047788,207.81,207.8,0.1]
[1756457579891,4.813202,207.89,207.8,0.1]